Cogmind - Beta 16 @@@ ROGUE MODE // 2026.01.22 @ 18:44:13 Player: YoKa Result: Destroyed by H-61 Shepherd with Heavy Assault Cannon Performance ------------- Evolutions (3) 1500 Regions Visited (7) 1400 Robots Destroyed (40) 200 Value Destroyed (703) 703 Prototype IDs (37) 740 Alien Tech Used (0) 0 Bonus (800) 800 TOTAL SCORE: 5343 Bonus ------- Entered DSFs 500 Aligned with FarCom 300 Cogmind --------- Core Integrity 0/700 Matter 63/300 Energy 99/100 System Corruption 0% Temperature Cool (0) Movement Core (50) Location -7/DSF Parts ------- > --- POWER (1) -------- (None) > --- PROPULSION (4) --- (None) > --- UTILITY (6) ------ (None) > --- WEAPON (2) ------- (None) > --- INVENTORY (5) ---- Reactive Plating Relay Coupler [NC] (17) High-powered Shotgun Datajack Signal Generator Peak State ------------ > --- POWER ------------ Light Ion Engine > --- PROPULSION ------- Gravmag System Gravmag System Gravmag System > --- UTILITY ---------- Small Storage Unit PSU Rigger > --- WEAPON ----------- Slug Cannon Grenade Launcher > --- INVENTORY -------- Ion Engine Aluminum Leg Aluminum Leg Aluminum Leg Datajack Signal Generator [Rating: 28] Favorites ----------- Power Ion Engine Engine Ion Engine Propulsion Aluminum Leg Leg Aluminum Leg Hover Unit Gravmag System Flight Unit Cesium-ion Thruster Utility Small Storage Unit Device PSU Rigger Storage Small Storage Unit Hackware Hacking Suite Weapon Small Laser Energy Gun Small Laser Ballistic Gun Assault Rifle Ballistic Cannon Slug Cannon Launcher Grenade Launcher Special Melee Weapon Datajack Build | -11 -10 -10 -10 -9 -8 -7 -7 ------- Run | Yrd Mat Min Exi Min Mat Fac DSF Slots Evolved 6 | . . . . . 4 2 . Power . | . . . . . . . . Propulsion 2 | . . . . . 1 1 . Utility 4 | . . . . . 3 1 . Weapon . | . . . . . . . . Parts Attached 29 | 6 7 . 2 3 6 2 3 Power 4 | 1 1 . . 1 1 . . Engine 4 | 1 1 . . 1 1 . . Core . | . . . . . . . . Reactor . | . . . . . . . . Propulsion 13 | 2 2 . . 1 5 . 3 Treads . | . . . . . . . . Leg 6 | 2 2 . . 1 1 . . Wheel . | . . . . . . . . Hover 4 | . . . . . 4 . . Flight 3 | . . . . . . . 3 Utility 3 | 1 . . 1 . . 1 . Device 1 | . . . 1 . . . . Storage 1 | 1 . . . . . . . Processor . | . . . . . . . . Hackware 1 | . . . . . . 1 . Protection . | . . . . . . . . Artifact . | . . . . . . . . Weapon 9 | 2 4 . 1 1 . 1 . Energy Gun 3 | 1 2 . . . . . . Energy Cannon . | . . . . . . . . Ballistic Gun 1 | 1 . . . . . . . Ballistic Cannon 2 | . . . . 1 . 1 . Launcher 2 | . 1 . 1 . . . . Special Weapon . | . . . . . . . . Impact Weapon . | . . . . . . . . Slashing Weapon . | . . . . . . . . Piercing Weapon . | . . . . . . . . Special Melee Weapon 1 | . 1 . . . . . . Unidentified Prototypes . | . . . . . . . . Parts Lost 17 | . 1 . . 1 11 . 4 Power 3 | . 1 . . . 2 . . Propulsion 9 | . . . . . 6 . 3 Utility 2 | . . . . . 1 . 1 Weapon 3 | . . . . 1 2 . . Highest Loss Streak 8 | . 1 . . 1 8 . 2 To Critical Strikes . | . . . . . . . . Average Backups 5 | 3 6 6 6 5 4 3 3 Power . | 1 . . . . . . . Propulsion 1 | 1 2 2 2 2 2 . . Utility . | . . . . . . 1 1 Weapon 2 | 1 2 3 4 1 . . 1 Tool/Special . | . . . . . . . . Unused Backups 7 | . 4 . . . . . 3 Power 1 | . 1 . . . . . . Propulsion 2 | . 2 . . . . . . Utility 2 | . . . . . . . 2 Weapon 2 | . 1 . . . . . 1 Tool/Special . | . . . . . . . . Average Slot Usage (%) 73 | . 81 85 79 97 64 12 20 Engine 10 | . 13 14 14 14 8 . . Leg 21 | . 28 28 28 28 6 . . Hover 2 | . . . . . 17 . . Device 5 | . . . 7 14 9 7 4 Storage 11 | . 14 14 14 14 8 . . Energy Gun 11 | . 24 14 . 8 . . . Ballistic Cannon 2 | . . . . 5 8 3 1 Launcher 3 | . . 14 . 11 6 . . Special Melee Weapon 2 | . 1 . 13 . . . . Peak Build Rating 28 | 5 6 7 15 18 28 16 18 Average Rating 11 | 3 5 6 10 16 24 11 11 On Entrance 9 | . 5 6 7 15 18 8 16 Avg Prop Armor Cover (%) 5 | . . . . . 5 . . Naked Turns 3 | . . . . . . . 3 Heaviest Build 20 | 11 14 14 16 20 20 9 9 Greatest Support 30 | 20 20 20 20 20 30 3 10 Greatest Overweight (x) 2 | . . . . . 2 2 2 Average Overweight (x) . | . . . . . . . . Largest Inventory Capacity 8 | 8 8 8 8 8 8 5 5 Average Capacity 7 | 7 8 8 8 8 7 5 5 Most Carried 8 | 6 8 7 8 8 8 5 5 Average Carried 6 | 4 6 6 7 6 5 4 4 Final Capacity 8 | 8 8 8 8 8 5 5 5 Final Carried 7 | 5 6 7 7 6 3 4 5 Class Distribution -------------------- 93% | Mutant 3% | Sprinter Dominant Class ---------------- Mutant | -10/Materials Mutant | -10/Mines Mutant | -10/Exiles Mutant | -9/Mines Mutant | -8/Materials Mutant | -7/Factory Mutant | -7/DSF Resources | -11 -10 -10 -10 -9 -8 -7 -7 ----------- Run | Yrd Mat Min Exi Min Mat Fac DSF Matter Collected 582 | 236 96 . 38 126 25 . 61 Remotely . | . . . . . . . . Salvage Created 949 | . 473 . . 243 233 . . Parts 65 | . 31 . . 10 24 . . Haulers Intercepted 1 | . 1 . . . . . . Recyclers Shooed 5 | . 5 . . . . . . Parts Field Recycled . | . . . . . . . . Retrieved Matter . | . . . . . . . . Parts Self-Destructed . | . . . . . . . . Prevented . | . . . . . . . . Parts Restored . | . . . . . . . . Kills | -11 -10 -10 -10 -9 -8 -7 -7 ------- Run | Yrd Mat Min Exi Min Mat Fac DSF Combat Hostiles Destroyed 29 | . 13 . . 9 7 . . Guns 17 | . 13 . . 4 . . . Cannons 3 | . . . . . 3 . . AOE 9 | . . . . 5 4 . . Classes Destroyed 10 | . 6 . . 1 3 . . Worker 1 | . 1 . . . . . . Builder 3 | . . . . . 3 . . Hauler 1 | . 1 . . . . . . Recycler 3 | . 1 . . 1 1 . . Operator 1 | . . . . . 1 . . Watcher 2 | . 2 . . . . . . Swarmer 19 | . 9 . . 6 4 . . Grunt 8 | . 4 . . 2 2 . . Brawler 1 | . . . . 1 . . . Sentry 1 | . . . . . 1 . . Best Kill Streak 7 | . 4 . . 6 7 . . Combat Bots Only 6 | . 3 . . 6 5 . . Max Kills in Single Turn 3 | . 2 . . 2 3 . . Gunslinging 1 | . 1 . . . . . . Exploded 2 | . . . . 2 1 . . Melee . | . . . . . . . . Uniques/NPCs Destroyed . | . . . . . . . . Combat | -11 -10 -10 -10 -9 -8 -7 -7 -------- Run | Yrd Mat Min Exi Min Mat Fac DSF Hostile Shots Fired 283 | . 60 . . 28 131 . 64 Missed 97 | . 17 . . 6 47 . 27 Hits 186 | . 43 . . 22 84 . 37 Projectile 186 | . 43 . . 22 84 . 37 Critical Strikes 10 | . . . . . 6 . 4 Damage Taken 2744 | . 412 . . 245 1150 . 937 Core 1180 | . 100 . . 32 329 . 719 Absorbed by Shields 22 | . . . . . . . 22 Core Remaining (%) 62 | 100 . . . 47 40 . . Volleys Fired 108 | . 67 . . 15 26 . . Largest 2 | . 2 . . 2 2 . . Hottest 80 | . 80 . . 70 70 . . Shots Fired 161 | . 108 . . 18 35 . . Gun 118 | . 107 . . 11 . . . Cannon 27 | . . . . 1 26 . . Launcher 16 | . 1 . . 6 9 . . Special . | . . . . . . . . Kinetic 27 | . . . . 1 26 . . Thermal 118 | . 107 . . 11 . . . Explosive 16 | . 1 . . 6 9 . . Electromagnetic . | . . . . . . . . Robot Hit Streak 11 | . 10 . . 11 4 . . Robot Miss Streak 3 | . 3 . . 1 3 . . Penetration Max . | . . . . . . . . Secondary Targets 2 | . 2 . . . . . . Max Gunslinging Chain 1 | . 1 . . . . . . Shots Hit Robots 90 | . 64 . 4 11 11 . . Core Hits 56 | . 26 . . 14 16 . . Critical Kills . | . . . . . . . . Critical Parts Destroyed 2 | . . . . . 2 . . Critical Strikes 2 | . . . . . 2 . . Destroy 2 | . . . . . 2 . . Melee Attacks 4 | . . . 4 . . . . Impact . | . . . . . . . . Slashing . | . . . . . . . . Piercing . | . . . . . . . . Sneak Attacks 4 | . . . 4 . . . . Combat Hostiles . | . . . . . . . . Follow-up Attacks . | . . . . . . . . Damage Inflicted 1931 | . 704 . . 414 813 . . Guns 788 | . 704 . . 84 . . . Cannons 315 | . . . . . 315 . . Explosions 827 | . . . . 330 497 . . Melee . | . . . . . . . . Ramming 1 | . . . . . 1 . . Kinetic 315 | . . . . . 315 . . Thermal 788 | . 704 . . 84 . . . Explosive 827 | . . . . 330 497 . . Electromagnetic . | . . . . . . . . Impact . | . . . . . . . . Slashing . | . . . . . . . . Piercing . | . . . . . . . . Highest Corruption 2 | . . . . . 2 . . Average Corruption 2 | . . . . . 2 . . Corruption Purged . | . . . . . . . . Corruption Blocked . | . . . . . . . . Overload Shots . | . . . . . . . . Overflow Damage 60 | . . . . 26 34 . . Projectiles . | . . . . . . . . Explosions 60 | . . . . 26 34 . . Melee . | . . . . . . . . Knockbacks 2 | . . . . . 2 . . Impact . | . . . . . . . . Kinetic 2 | . . . . . 2 . . Secondary . | . . . . . . . . Self-Inflicted Damage 63 | . . . . 63 . . . Shots 2 | . . . . 2 . . . Rammed 1 | . . . . . 1 . . Targets Rammed 3 | . . . . . 3 . . Kicked 2 | . . . . . 2 . . Crushed . | . . . . . . . . Highest Temperature 210 | . 210 . . 30 63 . . Average Temperature 46 | . 52 . . 24 35 . . Received Heat Transfer 522 | . 144 . . 12 324 . 42 Siege Activations . | . . . . . . . . Martial Activations . | . . . . . . . . Shielding Activations . | . . . . . . . . Robots Disrupted . | . . . . . . . . Combat Hostiles . | . . . . . . . . Robots Corrupted . | . . . . . . . . Combat Hostiles . | . . . . . . . . Parts Fried . | . . . . . . . . Impact Corruptions . | . . . . . . . . Robots Melted . | . . . . . . . . Combat Hostiles . | . . . . . . . . Parts Melted 2 | . 2 . . . . . . Heat Transferred 1800 | . 1600 . . 200 . . . Parts Sabotaged . | . . . . . . . . Parts Stolen . | . . . . . . . . Parts Stripped . | . . . . . . . . Power Chain Reactions . | . . . . . . . . Alert | -11 -10 -10 -10 -9 -8 -7 -7 ------- Run | Yrd Mat Min Exi Min Mat Fac DSF Maximum Alert Level 1 | . 1 . . 1 . . . Low Security (%) 88 | 100 82 100 . 79 100 100 100 Level 1 11 | . 17 . . 20 . . . Level 2 . | . . . . . . . . Level 3 . | . . . . . . . . Level 4 . | . . . . . . . . Level 5 . | . . . . . . . . High Security . | . . . . . . . . Max Security . | . . . . . . . . Peak Influence 238 | . 226 79 . 238 185 37 70 Initial 79 | . . 79 . . 48 37 2 Average 89 | . 68 57 . 170 145 21 27 Influence Increases 1122 | . 448 . . 294 286 4 90 Destroy 0b10 Robot/C 580 | . 260 . . 180 140 . . Destroy 0b10 Robot/NC 55 | . 25 . . 5 25 . . Destroy Leader 116 | . 56 . . 30 30 . . Successful Hack 16 | . 12 . . . . 4 . Disable Machine 75 | . . . . 45 30 . . Destroy Structure 70 | . 5 . . 34 31 . . Lose Combat Pursuer 210 | . 90 . . . 30 . 90 Influence Decreases 1062 | . 243 176 29 170 326 84 34 Entered New Map 280 | . . 126 29 . 76 47 2 Time Decay 630 | . 243 50 . 160 140 37 . Lost Part 152 | . . . . 10 110 . 32 Squads Dispatched 6 | . 2 . . . 3 . 1 Investigation 2 | . 2 . . . . . . Extermination . | . . . . . . . . Reinforcement 3 | . . . . . 2 . 1 Assault . | . . . . . . . . Garrison 1 | . . . . . 1 . . Intercept . | . . . . . . . . Searches Triggered . | . . . . . . . . Construction Impeded 2 | . . . . . 2 . . Haulers Reinforced . | . . . . . . . . Active Scanning Responses . | . . . . . . . . Cargo Convoy Interrupts . | . . . . . . . . Stealth | -11 -10 -10 -10 -9 -8 -7 -7 --------- Run | Yrd Mat Min Exi Min Mat Fac DSF Distress Signals 2 | . 1 . . . 1 . . Communications Jammed . | . . . . . . . . Distress Signals . | . . . . . . . . Times Spotted 60 | . 20 . . 7 19 . 14 Peak Tracking Total 7 | . 6 . . 5 7 . 6 Tactical Retreats 9 | . 3 . . . 1 . 5 Traps | -11 -10 -10 -10 -9 -8 -7 -7 ------- Run | Yrd Mat Min Exi Min Mat Fac DSF Traps Triggered 4 | . 1 . . . 1 . 2 Indirectly . | . . . . . . . . Trap Hack Attempts 23 | . 23 . . . . . . Triggered . | . . . . . . . . Disarmed 4 | . 4 . . . . . . Reprogrammed . | . . . . . . . . Reused . | . . . . . . . . Traps Extracted . | . . . . . . . . Installed . | . . . . . . . . Triggered . | . . . . . . . . Objects Rigged 1 | . . . . 1 . . . Machines | -11 -10 -10 -10 -9 -8 -7 -7 ---------- Run | Yrd Mat Min Exi Min Mat Fac DSF Machines Disabled 5 | . . . . 3 2 . . Max in Single Turn 2 | . . . . 2 1 . . Machines Repaired . | . . . . . . . . Machines Dismantled . | . . . . . . . . Machines Sabotaged . | . . . . . . . . Overloaded Fab Kills . | . . . . . . . . Hacking | -11 -10 -10 -10 -9 -8 -7 -7 --------- Run | Yrd Mat Min Exi Min Mat Fac DSF Machines Accessed 9 | . 6 . 2 . . 1 . Terminals 7 | . 6 . . . . 1 . Fabricators . | . . . . . . . . Repair Stations . | . . . . . . . . Recycling Units . | . . . . . . . . Scanalyzers . | . . . . . . . . Garrison Access . | . . . . . . . . Total Hacks 19 | . 13 . 5 . . 1 . Successful 8 | . 2 . 5 . . 1 . Failed 11 | . 11 . . . . . . Catastrophic 4 | . 4 . . . . . . Database Lockouts . | . . . . . . . . Manual 14 | . 13 . 1 . . . . Terminals 14 | . 13 . . . . 1 . Fabricators . | . . . . . . . . Repair Stations . | . . . . . . . . Recycling Units . | . . . . . . . . Scanalyzers . | . . . . . . . . Garrison Access . | . . . . . . . . Terminal Hacks 7 | . 1 . 5 . . 1 . Record 4 | . . . 4 . . . . Open DSF 1 | . . . . . . 1 . Terminal Index 1 | . 1 . . . . . . Proto ID Catalog 1 | . . . 1 . . . . Fabricator Hacks . | . . . . . . . . Repair Station Hacks . | . . . . . . . . Recycling Unit Hacks . | . . . . . . . . Scanalyzer . | . . . . . . . . Garrison Access Hacks . | . . . . . . . . Unauthorized Hacks 1 | . 1 . . . . . . Terminals 1 | . 1 . . . . . . Operators 1 | . 1 . . . . . . Fabricators . | . . . . . . . . Repair Stations . | . . . . . . . . Recycling Units . | . . . . . . . . Scanalyzers . | . . . . . . . . Garrison Access . | . . . . . . . . Data Cores Recovered . | . . . . . . . . Used . | . . . . . . . . Hacking Detections 6 | . 5 . . . . 1 . Full Trace Events 2 | . 2 . . . . . . Feedback Events . | . . . . . . . . Feedback Blocked . | . . . . . . . . Robot Schematics Acquired . | . . . . . . . . Robots Built . | . . . . . . . . Authchips . | . . . . . . . . Time . | . . . . . . . . Total Robot Build Rating . | . . . . . . . . Part Schematics Acquired . | . . . . . . . . Parts Built . | . . . . . . . . Authchips . | . . . . . . . . Time . | . . . . . . . . Total Part Build Rating . | . . . . . . . . Part Studies Acquired . | . . . . . . . . Parts Repaired . | . . . . . . . . Time . | . . . . . . . . Parts Recycled . | . . . . . . . . Recycled Matter . | . . . . . . . . Retrieved Matter . | . . . . . . . . Retrieved Components . | . . . . . . . . Parts Scanalyzed . | . . . . . . . . Part Schematics Acquired . | . . . . . . . . Parts Damaged . | . . . . . . . . Bothacking | -11 -10 -10 -10 -9 -8 -7 -7 ------------ Run | Yrd Mat Min Exi Min Mat Fac DSF Used RIF Installer . | . . . . . . . . Robots Hacked 4 | . . . 4 . . . . Non-combat 3 | . . . 3 . . . . Combat 1 | . . . 1 . . . . Robot Hacks Applied 4 | . . . 4 . . . . parse_system 4 | . . . 4 . . . . Relay Couplers Released . | . . . . . . . . Fabnet Peak Effective % . | . . . . . . . . Robots Rewired . | . . . . . . . . Allies Hacked . | . . . . . . . . Hacks Repelled . | . . . . . . . . Allies | -11 -10 -10 -10 -9 -8 -7 -7 -------- Run | Yrd Mat Min Exi Min Mat Fac DSF Total Allies . | . . . . . . . . Largest Group . | . . . . . . . . Highest-Rated Group . | . . . . . . . . Highest-Rated Ally . | . . . . . . . . Total Orders . | . . . . . . . . Ally Attacks . | . . . . . . . . Total Damage . | . . . . . . . . Kills . | . . . . . . . . Allies Corrupted . | . . . . . . . . Allies Melted . | . . . . . . . . Intel | -11 -10 -10 -10 -9 -8 -7 -7 ------- Run | Yrd Mat Min Exi Min Mat Fac DSF Active Infowar (turns) . | . . . . . . . . Robot Analysis Total . | . . . . . . . . Derelict Logs Recovered 1 | . . . . 1 . . . Drone Launches . | . . . . . . . . Drone Recoveries . | . . . . . . . . Exploration | -11 -10 -10 -10 -9 -8 -7 -7 ------------- Run | Yrd Mat Min Exi Min Mat Fac DSF Turns Passed 2147 | 60 784 102 313 330 284 82 192 Spaces Moved 1573 | 42 403 85 251 235 120 85 352 Core 211 | 9 . . . . 2 85 115 Treads . | . . . . . . . . Legs 1038 | 33 403 85 251 235 31 . . Wheels . | . . . . . . . . Hover 87 | . . . . . 87 . . Flight 237 | . . . . . . . 237 Fastest Speed 32 | 50 120 120 120 120 50 50 32 Average Speed 97 | 105 120 120 120 120 74 92 42 Slowest Speed 190 | 120 120 120 120 120 190 150 150 Overloaded Moves . | . . . . . . . . Propulsion Burnouts . | . . . . . . . . Robots Hopped . | . . . . . . . . Potential Cave-ins . | . . . . . . . . Cave-ins Triggered . | . . . . . . . . Exploration Rate (%) 40 | 4 71 23 63 51 16 2 96 Regions Visited 7 Branch Regions 3 Pre-discovered Areas 1 | . . . 1 . . . . Known Exits Taken 1 | . . . . . . 1 . Unknown Exits Taken 6 | 1 1 1 1 1 1 . . Scrap Searched . | . . . . . . . . Spaces Dug . | . . . . . . . . Terrain Destroyed 92 | . 5 . . 40 47 . . Melee . | . . . . . . . . Projectile 13 | . . . . 1 12 . . AOE 79 | . 5 . . 39 35 . . Terrain Rammed . | . . . . . . . . Walls Destroyed . | . . . . . . . . Machines Disabled . | . . . . . . . . Actions | -11 -10 -10 -10 -9 -8 -7 -7 --------- Run | Yrd Mat Min Exi Min Mat Fac DSF Total 2024 | 57 598 85 260 265 279 88 392 Wait 220 | . 82 . . . 115 . 23 Move 1566 | 41 402 84 250 234 119 84 352 Hop . | . . . . . . . . Pick Up 33 | 10 8 1 . 4 5 2 3 Fast Attach 4 | . . . 1 . . 1 2 Attach 22 | 5 4 . 2 1 7 1 2 Detach 4 | . 2 . 2 . . . . Swap 12 | 1 4 . 1 5 1 . . Drop 14 | . 6 . . 5 3 . . Fire 108 | . 67 . . 15 26 . . Melee 4 | . . . 4 . . . . Ram 1 | . . . . . 1 . . Kick 2 | . . . . . 2 . . Crush . | . . . . . . . . Escape Stasis 10 | . . . . . . . 10 Rewire . | . . . . . . . . Trap 24 | . 23 . . 1 . . . Miscellaneous . | . . . . . . . . Route ------- -11/Scrapyard -10/Materials (discovered 5 exits: [*Mat x3] / [*Min x2]) -10/Mines -10/Exiles -9/Mines -8/Materials -7/Factory (discovered 2 exits: [*Low] / DSF) -7/DSF (discovered 1 exit: [*Fac]) History --------- Turn | Location | Event 11 | -11/Scrapyard | Discovered new exit (range 15) 61 | -11/Scrapyard | Entered Materials 274 | -10/Materials | Discovered new exit (range 8) 312 | -10/Materials | Build established: Mutant 348 | -10/Materials | Discovered new exit (range 3) 502 | -10/Materials | Discovered new exit (range 10) 661 | -10/Materials | Discovered new exit (range 8) 808 | -10/Materials | Discovered new exit (range 3) 845 | -10/Materials | Entered Mines 846 | -10/Mines | Met a Derelict testing a Signal Generator 848 | -10/Mines | Found Signal Generator 941 | -10/Mines | Deemed a non-threat by the Exiles lab entrance 942 | -10/Mines | Discovered new exit (range 5) 947 | -10/Mines | Entered Exiles 978 | -10/Exiles | Met 8R-AWN 999 | -10/Exiles | Met EX-HEX 1034 | -10/Exiles | Met EX-BIN 1052 | -10/Exiles | Aligned with FarCom system 1054 | -10/Exiles | Given EX-Vault access code 1081 | -10/Exiles | Opened EX-Vault 1090 | -10/Exiles | Found PSU Rigger 1113 | -10/Exiles | Warned to stay clear of 0b10 Research branches 1147 | -10/Exiles | Met EX-DEC 1155 | -10/Exiles | Learned location of Zion (-6) 1244 | -10/Exiles | Discovered new exit (range 14) 1260 | -10/Exiles | Left Exiles lab with PSU Rigger 1260 | -10/Exiles | Entered Mines 1279 | -9/Mines | Core integrity fell below 50% 1447 | -9/Mines | A weapon hastily lodged in a ceiling crevice suddenly fell to the ground 1556 | -9/Mines | Found a hidden stash of uninstalled traps 1564 | -9/Mines | Learned Materials trap positions 1576 | -9/Mines | Discovered new exit (range 10) 1590 | -9/Mines | Entered Materials 1590 | -8/Materials | Evolved 4 slots: Propulsion x1, Utility x3 1591 | -8/Materials | Loaded intel: 22 trap records 1773 | -8/Materials | Garrison activated, responded to threat 1804 | -8/Materials | Discovered new exit (range 15) 1828 | -8/Materials | Lost 3 parts (1p1n1w) 1874 | -8/Materials | Core integrity fell below 50% 1874 | -8/Materials | Entered Factory 1874 | -7/Factory | Evolved 2 slots: Propulsion x1, Utility x1 1887 | -7/Factory | Discovered new exit (range 14) 1905 | -7/Factory | Lost 8 parts (1p5n1u1w) 1956 | -7/Factory | Identified exit to DSF 1956 | -7/Factory | Entered DSF 1989 | -7/DSF | Additional patrols routed to DSF 2041 | -7/DSF | Discovered new exit (range 16) 2100 | -7/DSF | Core integrity fell below 50% 2146 | -7/DSF | Core integrity fell below 20% 2148 | -7/DSF | Destroyed by H-61 Shepherd with Heavy Assault Cannon Last Messages --------------- Stasis field depleted. Cesium-ion Thruster destroyed. PSU Rigger blasted off. C-30 ARC bursts open, deploying its payload. H-55 Commando unfolds itself. Slug penetrates Wall. X-57 Shotgunner springs to life. Knocked back. A-02 Transporter destroyed. X-67 Chaingunner springs to life. Cesium-ion Thruster destroyed. Slug penetrates Wall. Acquired 1 matter. Slug penetrates Wall. Knocked back. Hacking Suite destroyed. Critical hit (Blast). Penetrated by Slug. Slug penetrates Wall. Acquired 44 matter. Map ----- +----------------------------------------------------+ | | | | | | | | | ?????????????????????????????????????????????????? | | ?????????????????????????????????????????????????? | | ?????????????????????????????????????????????????? | | ?????????##??????????????????????????????????????? | | ?????????""#????????????###???????????""?????????? | | ?????????#"#?????????#### #??????????#"#?????????? | | ??????####"##???????##"##;###???????##"####??????? | | ??????#"""""######### ] %=!!#########"""""#??????? | | ??????#"""""##!!# # ==!!# # ##"""""#??????? | | ???#"##"" ""##"????? | | ???#""""" """""????? | | ????###"" ## !# ### #"# # ## ""##?????? | | ??????### ###!!# ### #"# # ### ###??????? | | ???????## ##########!! !!########## ##???????? | | ???????# !!#??????#!! !!#??????# #???????? | | ???????#! !!#??????#!! !!#??????# #???????? | | ???????## ###??????### ###??????### ##???????? | | ???????# !!#??????#== !!???????# !#???????? | | ???????# !!#??????#== !!???????# !#???????? | | ???????# !!#???????== %!!???????# !#???????? | | ??????### ############ *###?######## ###??????? | | ??????#!! ##!!!#!!!### @###!!!#!!!## #??????? | | ??????#!! ##!!!#!!!## ! ##!!!#!!!## #??????? | | ??????# a x h !!#??????? | | ??????# x !!#??????? | | ??????# H a% x !!#??????? | | ??????#== ##!!!#!!!##a ##!!!#[[[## !!#??????? | | ??????#== ##!!!#!!!### ###!!!#[[[## !!#??????? | | ??????################# ###?######## ###??????? | | ????????????????????#!! !!#??????# !#???????? | | ????????????????????#!! !!#??????# !#???????? | | ????????????????????#!! !!#??????# !#???????? | | ????????????????????### ;##??????### ##???????? | | ????????????????????#// #??????#!! #???????? | | ????????????????????#// #??????#!! #???????? | | ????????????????????#// ########## ##???????? | | ????????????????????### ###!!!#!!### ###??????? | | ????????????????????### ###!!!#!!## ""###????? | | ????????????????????# ^! %"""""#???? | | ????????????????????# % "<""##"#???? | | ????????????????????# % # # ##"""""#??????? | | ????????????????????# #########"""""#??????? | | ????????????????????#########???????##"####??????? | | ?????????????????????????????????????#"#?????????? | | ?????????????????????????????????????#""?????????? | | ??????????????????????????????????????##?????????? | +----------------------------------------------------+ Best States ------------- Heat Dissipation 34 Energy Generation 10 Energy Capacity 250 Matter Stores 300 Matter Capacity 300 Sight Range 16 Terrain Scan Density 10 Evasion (%) 63 Offensive Hacking 10 Item Schematics ----------------- None Robot Schematics ------------------ None Fabricated ------------ Nothing Repaired ---------- Nothing Studied --------- None Alien Tech Used ----------------- None Achievements -------------- Dramatic Entrance Challenges ------------ None Game ------ Seed AlloyGravmagTurretformer Manual? 0 Play Time 00:26:54 Cumulative 13.7 hours Start 2026.01.22 @ 18:03:02 End 2026.01.22 @ 18:44:13 Sessions 1 Manual Loads 0 Difficulty Rogue Special Mode None Game No. 25 Rogue 25 Adventurer 0 Explorer 0 Win Type - Total 0 Types 0/0/0/0/0/0/0/0/0/0 Lore% 12 Gallery% 17 Achievement% 16 Wizard Run 0 Options --------- Layout 2 ASCII 0 Keyboard 0 Movement Mouse Keybinds 0 Fullscreen 1 Font 24/Smallcaps Map View 50x44 Zoom Use 0% Tactical HUD 0 Map Filters NONE Filters NONE Steam 1 RUN: 47657b90-5e5d-4f9f-b213-6eb0e1a87e66